Workbook

Sheet School Information
C1: School Waste Calculator
I2: page 1 of 5
C4: School Name
C6: Number of Students
C7: Number of Staff
C9: State or Teritory | D9: NSW
C10: Local Government Area

Sheet Paper purchased
C1: School Waste Calculator | Q1: Explanation - Delete when happy
I2: page 2 of 5
C4: Paper Purchases
C6: Number of Reams A4 | Q6: to be multiplied by 2.5 to give KG
C7: Over What Period | Q7: to allow for period calculation
C9: Recycled Content (%) | Q9: to modify the footprint and consider alternatives
Q13: foot print formulae
Q14: GH/kg | R14: =(0.0006394)-((0.0000131799999999999)*(100*recycled content (C1)))
Q15: Based on examples from Vic EPA doc
Q16: multiple by kg and by period modifier to determine outcome

Sheet How much waste
C1: School Waste Calculator
O2: page 3 of 5
C4: How Much Waste (see tips at bottom of page)
E6: General Waste (garbage to landfill) | H6: Bin Type One | L6: Bin Type Two | P6: Bin Type Three
D8: Bin Size (in cubic meters) | V8: =IF(OR(H15,L15,P15),TRUE,FALSE) -> FALSE
D10: How many times per week is it collected
D12: How many bins
D14: How full are the bins (% estimate)
H15: =IF(H8>0,IF(H10>0,IF(H12>0,IF(H14>0,TRUE,FALSE)))) -> FALSE | L15: =IF(L8>0,IF(L10>0,IF(L12>0,IF(L14>0,TRUE,FALSE)))) -> FALSE | P15: =IF(P8>0,IF(P10>0,IF(P12>0,IF(P14>0,TRUE,FALSE)))) -> FALSE
E16: Paper Recycling | H16: Bin Type One | L16: Bin Type Two | P16: Bin Type Three
D18: Bin Size | V18: =IF(OR(H25,L25,P25),TRUE,FALSE) -> FALSE
D20: How many times per week is it collected
D22: How many bins | H22: 2
D24: How full are the bins (% estimate)
H25: =IF(H18>0,IF(H20>0,IF(H22>0,IF(H24>0,TRUE,FALSE)))) -> FALSE | L25: =IF(L18>0,IF(L20>0,IF(L22>0,IF(L24>0,TRUE,FALSE)))) -> FALSE | P25: =IF(P18>0,IF(P20>0,IF(P22>0,IF(P24>0,TRUE,FALSE)))) -> FALSE
E26: Cardboard Recycling | H26: Bin Type One | L26: Bin Type Two | P26: Bin Type Three
D28: Bin Size | V28: =IF(OR(H35,L35,P35),TRUE,FALSE) -> FALSE
D30: How many times per week is it collected
D32: How many bins
D34: How full are the bins (% estimate)
H35: =IF(H28>0,IF(H30>0,IF(H32>0,IF(H34>0,TRUE,FALSE)))) -> FALSE | L35: =IF(L28>0,IF(L30>0,IF(L32>0,IF(L34>0,TRUE,FALSE)))) -> FALSE | P35: =IF(P28>0,IF(P30>0,IF(P32>0,IF(P34>0,TRUE,FALSE)))) -> FALSE
E36: Comingled Recycling | H36: Bin Type One | L36: Bin Type Two | P36: Bin Type Three
D38: Bin Size | V38: =IF(OR(H45,L45,P45),TRUE,FALSE) -> FALSE
D40: How many times per week is it collected
D42: How many bins
D44: How full are the bins (% estimate)
H45: =IF(H38>0,IF(H40>0,IF(H42>0,IF(H44>0,TRUE,FALSE)))) -> FALSE | L45: =IF(L38>0,IF(L40>0,IF(L42>0,IF(L44>0,TRUE,FALSE)))) -> FALSE | P45: =IF(P38>0,IF(P40>0,IF(P42>0,IF(P44>0,TRUE,FALSE)))) -> FALSE
E46: Other Recycling | H46: Bin Type One | L46: Bin Type Two | P46: Bin Type Three
D49: Bin Size | V49: =IF(OR(H56,L56,P56),TRUE,FALSE) -> FALSE
D51: How many times per week is it collected
D53: How many bins
D55: How full are the bins (% estimate)
H56: =IF(H49>0,IF(H51>0,IF(H53>0,IF(H55>0,TRUE,FALSE)))) -> FALSE | L56: =IF(L49>0,IF(L51>0,IF(L53>0,IF(L55>0,TRUE,FALSE)))) -> FALSE | P56: =IF(P49>0,IF(P51>0,IF(P53>0,IF(P55>0,TRUE,FALSE)))) -> FALSE
E58: Other Waste Diverted or Reused | H58: Bin Type One | L58: Bin Type Two | P58: Bin Type Three
D61: Bin Size | V61: =IF(OR(H68,L68,P68),TRUE,FALSE) -> FALSE
D63: How many times per week is it collected
D65: How many bins
D67: How full are the bins (% estimate)
H68: =IF(H61>0,IF(H63>0,IF(H65>0,IF(H67>0,TRUE,FALSE)))) -> FALSE | L68: =IF(L61>0,IF(L63>0,IF(L65>0,IF(L67>0,TRUE,FALSE)))) -> FALSE | P68: =IF(P61>0,IF(P63>0,IF(P65>0,IF(P67>0,TRUE,FALSE)))) -> FALSE
D74: TIP | E74: Different types of bins and collections
E75: For each bin configuration use a separate column within the waste stream. This will allow for waste streams that may have different bin sizes or different collection days.
D86: TIP | E86: How often the bin is collected | F86: Monday | G86: Tuesday | H86: Wednesday | I86: Thursday | J86: Friday | K86: Saturday | L86: Sunday | M86: Monday | N86: Tuesday | O86: Wednesday | P86: Thursday | Q86: Friday | R86: Saturday | S86: Sunday
E87: Place a one in each day the bin(s) are collected over a 2 week period
E90: Information to enter
E91: =SUM(F88:S88)/2 -> 0
D98: TIP | E98: How big is my bin (cubic metres)
E99: Your waste service provider or the invoice from the waste service provider will assist in identifying the size of your bin. Please record the size in m3.
E103: We have a wheelie bin but which size? | G103: Small (120 lts)
G104: 0.12 | L104: ~ 940mm x 485mm x 560mm
G105: Normal (240 lts)
G106: 0.24 | L106: ~ 1080mm x 580mm x 735mm
G107: Large (360 lts)
G108: 0.36 | L108: ~ 1080mm x 580mm x 735mm
E112: We have a rear lift bin, but which size? | G112: 660lt bin
G113: 0.66 | K113: ~ 1200mm x 1200mm x 780mm
G115: 1100lt bin
G116: 1.1 | K116: ~ 1330mm x 1240mm x 1070mm
G120: Ignore the base plate or wheels in all measurements
E121: We have a front lift bin, but how big? | G121: How High | L121: mm | O121: =ROUND(((J121/1000)*(J122/1000)*(J123/1000))/0.25,0)*0.25 -> 0
G122: How Long | L122: mm
G123: How Deep | L123: mm
G129: How High | L129: mm | O129: =ROUND(((J129/1000)*(J130/1000)*(J131/1000))/0.25,0)*0.25 -> 0
G130: How Long | L130: mm
E131: We have a skip bin, but how big? | G131: How Deep | L131: mm
D140: TIP | E140: Other waste diverted at your school
E141: Are there other wastes generated in your school that are diverted or reused in your school? If you didn't use this in your school would they go in the bin? If YES you are diverting or reusing waste. Try and estimate how much of this there is (use the bin size tips as a guide) per week and then it will be measured in your waste diversion rate.

Sheet What's in your waste
C1: School Waste Calculator
T2: page 4 of 5
C4: What's in Your Waste (see tips at bottom of page)
D6: Waste Stream | F6: Recyclable Paper | H6: Cardboard | J6: Recyclable Glass | L6: Recyclable Plastic | N6: Recyclable Metal | Q6: Food Waste | S6: Garden waste | V6: General Waste
E8: General Waste | F8: =AC8 -> 0.42 | H8: =AD8 -> 0.21 | J8: =AE8 -> 0 | L8: =AF8 -> 0.05 | N8: =AG8 -> 0.01 | Q8: =AH8 -> 0.04 | S8: =AI8 -> 0.09 | V8: =AJ8 -> 0.19 | AB8: =IF(OR(SUM(F8:W8)=1,SUM(F8:W8)=0),TRUE,FALSE) -> FALSE | AC8: ='Waste Composition'!C86 -> 0.42 | AD8: ='Waste Composition'!D86 -> 0.21 | AE8: ='Waste Composition'!E86 -> 0 | AF8: ='Waste Composition'!F86 -> 0.05 | AG8: ='Waste Composition'!G86 -> 0.01 | AH8: ='Waste Composition'!H86 -> 0.04 | AI8: ='Waste Composition'!I86 -> 0.09 | AJ8: ='Waste Composition'!J86 -> 0.19
AC9: ='Waste Composition'!C87 -> 0.65 | AD9: ='Waste Composition'!D87 -> 0.19 | AE9: ='Waste Composition'!E87 -> 0 | AF9: ='Waste Composition'!F87 -> 0.07 | AG9: ='Waste Composition'!G87 -> 0.01 | AH9: ='Waste Composition'!H87 -> 0 | AI9: ='Waste Composition'!I87 -> 0 | AJ9: ='Waste Composition'!J87 -> 0.08
E10: Comingled Recycling | F10: =AC9 -> 0.65 | H10: =AD9 -> 0.19 | J10: =AE9 -> 0 | L10: =AF9 -> 0.07 | N10: =AG9 -> 0.01 | Q10: =AH9 -> 0 | S10: =AI9 -> 0 | V10: =AJ9 -> 0.08 | Y10: =SUM(F10:W10) -> 1 | AB10: =IF(OR(SUM(F10:W10)=1,SUM(F10:W10)=0),TRUE,FALSE) -> TRUE | AC10: ='Waste Composition'!C88 -> 0.56 | AD10: ='Waste Composition'!D88 -> 0.39 | AE10: ='Waste Composition'!E88 -> 0 | AF10: ='Waste Composition'!F88 -> 0.01 | AG10: ='Waste Composition'!G88 -> 0 | AH10: ='Waste Composition'!H88 -> 0 | AI10: ='Waste Composition'!I88 -> 0 | AJ10: ='Waste Composition'!J88 -> 0.04
E12: Cardboard Recycling | F12: =AC10 -> 0.56 | H12: =AD10 -> 0.39 | J12: =AE10 -> 0 | L12: =AF10 -> 0.01 | N12: =AG10 -> 0 | Q12: =AH10 -> 0 | S12: =AI10 -> 0 | V12: =AJ10 -> 0.04 | Y12: =SUM(F12:W12) -> 1 | AB12: =IF(OR(SUM(F12:W12)=1,SUM(F12:W12)=0),TRUE,FALSE) -> TRUE
AC15: ='Waste Composition'!#REF! ->  | AD15: ='Waste Composition'!#REF! ->  | AE15: ='Waste Composition'!#REF! ->  | AF15: ='Waste Composition'!#REF! ->  | AG15: ='Waste Composition'!#REF! ->  | AH15: ='Waste Composition'!#REF! -> 
D16: Indicate if you have conducted a waste audit by ticking the box next to the audited streams and complete the breakdown for the stream. A tick will appear when the composition totals to 100%. Waste Stream | F16: Recyclable Paper | H16: Cardboard | J16: Recyclable Glass | L16: Recyclable Plastic | N16: Recyclable Metal | Q16: Food Waste | S16: Garden waste | V16: General Waste
D18: FALSE | E18: General Waste | F18: 0 | H18: 0 | J18: 0 | L18: 0 | N18: 0 | Q18: 0 | S18: 0 | V18: 0 | Y18: =IF(AND(D18=TRUE,(ROUND(AC18,2)=1)),"ü",IF(D18=TRUE,"û","")) ->  | AC18: =SUM(F18:W18) -> 0
D20: FALSE | E20: Comingled Recycling | F20: 0 | H20: 0 | J20: 0 | L20: 0 | N20: 0 | Q20: 0 | S20: 0 | V20: 0 | Y20: =IF(AND(D20=TRUE,(ROUND(AC20,2)=1)),"ü",IF(D20=TRUE,"û","")) ->  | AC20: =SUM(F20:W20) -> 0
D22: FALSE | E22: Paper/Cardboard Recycling | F22: 0 | H22: 0 | J22: 0 | L22: 0 | N22: 0 | Q22: 0 | S22: 0 | V22: 0 | Y22: =IF(AND(D22=TRUE,(ROUND(AC22,2)=1)),"ü",IF(D22=TRUE,"û","")) ->  | AC22: =SUM(F22:W22) -> 0
D24: FALSE | Y24: =IF(AND(D24=TRUE,(ROUND(AC24,2)=1)),"ü",IF(D24=TRUE,"û","")) -> 
D30: TIP | E30: We haven't done a waste audit!
E31: Don't worry, if you haven't done a waste, the calculator will estimate the types of waste generated in school environments with similar waste and recycling services as yours. If your school is particular effective at recycling or reducing waste, it would be worth having a look at what is in your waste stream as it might be different to the 'average' school. If you want to use the defaul values again, just untick your audit data.

Sheet Waste Minimisation
C1: School Waste Calculator
P2: page 5 of 5
C4: Waste Minimisation
E7: We recycle printer cartridges. | L7: FALSE
E8: We recycled fluorescent tubes. | L8: FALSE
E9: We recycle computers | L9: FALSE
E10: We recycle mobile phones | L10: FALSE
E12: We have litter free lunch days | L12: FALSE
E13: We have a school policy to print double sided | L13: FALSE
E14: We print in black and white | L14: FALSE
E15: We use recycled paper | L15: FALSE
E16: Our school is plastic bag free | L16: FALSE
E17: Double Sided Printing | L17: FALSE
E18: Reuse of single sided paper | L18: FALSE
E19: Electronic filing and communication systems | L19: FALSE
E20: Electronic publishing | L20: FALSE
E21: Policies to minimise offsite introduction of packaging | L21: FALSE
E23: Other | J23: FALSE | L23: =IF(OR(J23,L25,L26,L28,L29=TRUE),TRUE,FALSE) -> FALSE
J25: FALSE | L25: =IF(OR(J25=TRUE,E25<>""),TRUE,FALSE) -> FALSE
J26: FALSE | L26: =IF(OR(J26=TRUE,E27<>""),TRUE,FALSE) -> FALSE
J28: FALSE | L28: =IF(OR(J28=TRUE,E29<>""),TRUE,FALSE) -> FALSE
J29: FALSE | L29: =IF(OR(J29=TRUE,E31<>""),TRUE,FALSE) -> FALSE

Sheet DataStore (hidden)
A1: School Name | B1: ='School Information'!D4 -> 0
A3: Number of Students | B3: ='School Information'!D6 -> 0
A4: Number of Staff | B4: ='School Information'!D7 -> 0
A6: What State | B6: ='School Information'!D9 -> NSW
A7: Local Government Area | B7: ='School Information'!D10 -> 0
A8: Pg2
A9: Number of Reams A4 | B9: ='Paper purchased'!D6 -> 0
A10: Over What Period | B10: ='Paper purchased'!D7 -> 0
A12: Recycled Content (%) | B12: ='Paper purchased'!D9 -> 0
A13: Pg3
A14: General Waste (garbage to landfill) | B14: =B16*B18*B20*B22 -> 0 | C14: =C16*C18*C20*C22 -> 0 | D14: =D16*D18*D20*D22 -> 0 | E14: =SUM(B14:D14) -> 0 | F14: =B16*B18*B20 -> 0
A16: Bin Size | B16: ='How much waste'!H8 -> 0 | C16: ='How much waste'!L8 -> 0 | D16: ='How much waste'!P8 -> 0
A18: How many times per week is it collected | B18: ='How much waste'!H10 -> 0 | C18: ='How much waste'!L10 -> 0 | D18: ='How much waste'!P10 -> 0
A20: How many bins | B20: ='How much waste'!H12 -> 0 | C20: ='How much waste'!L12 -> 0 | D20: ='How much waste'!P12 -> 0
A22: How full are the bins (% estimate) | B22: ='How much waste'!H14 -> 0 | C22: ='How much waste'!L14 -> 0 | D22: ='How much waste'!P14 -> 0
A24: Paper Recycling | B24: =B26*B28*B30*B32 -> 0 | C24: =C26*C28*C30*C32 -> 0 | D24: =D26*D28*D30*D32 -> 0 | E24: =SUM(B24:D24) -> 0 | F24: =B26*B28*B30 -> 0
A26: Bin Size | B26: ='How much waste'!H18 -> 0 | C26: ='How much waste'!L18 -> 0 | D26: ='How much waste'!P18 -> 0
A28: How many times per week is it collected | B28: ='How much waste'!H20 -> 0 | C28: ='How much waste'!L20 -> 0 | D28: ='How much waste'!P20 -> 0
A30: How many bins | B30: ='How much waste'!H22 -> 2 | C30: ='How much waste'!L22 -> 0 | D30: ='How much waste'!P22 -> 0
A32: How full are the bins (% estimate) | B32: ='How much waste'!H24 -> 0 | C32: ='How much waste'!L24 -> 0 | D32: ='How much waste'!P24 -> 0
A34: Cardboard Recycling | B34: =B36*B38*B40*B42 -> 0 | C34: =C36*C38*C40*C42 -> 0 | D34: =D36*D38*D40*D42 -> 0 | E34: =SUM(B34:D34) -> 0 | F34: =B36*B38*B40 -> 0
A36: Bin Size | B36: ='How much waste'!H28 -> 0 | C36: ='How much waste'!L28 -> 0 | D36: ='How much waste'!P28 -> 0
A38: How many times per week is it collected | B38: ='How much waste'!H30 -> 0 | C38: ='How much waste'!L30 -> 0 | D38: ='How much waste'!P30 -> 0
A40: How many bins | B40: ='How much waste'!H32 -> 0 | C40: ='How much waste'!L32 -> 0 | D40: ='How much waste'!P32 -> 0
A42: How full are the bins (% estimate) | B42: ='How much waste'!H34 -> 0 | C42: ='How much waste'!L34 -> 0 | D42: ='How much waste'!P34 -> 0
A44: General Recycling (Comingled) | B44: =B46*B48*B50*B52 -> 0 | C44: =C46*C48*C50*C52 -> 0 | D44: =D46*D48*D50*D52 -> 0 | E44: =SUM(B44:D44) -> 0 | F44: =B46*B48*B50 -> 0
A46: Bin Size | B46: ='How much waste'!H38 -> 0 | C46: ='How much waste'!L38 -> 0 | D46: ='How much waste'!P38 -> 0
A48: How many times per week is it collected | B48: ='How much waste'!H40 -> 0 | C48: ='How much waste'!L40 -> 0 | D48: ='How much waste'!P40 -> 0
A50: How many bins | B50: ='How much waste'!H42 -> 0 | C50: ='How much waste'!L42 -> 0 | D50: ='How much waste'!P42 -> 0
A52: How full are the bins (% estimate) | B52: ='How much waste'!H44 -> 0 | C52: ='How much waste'!L44 -> 0 | D52: ='How much waste'!P44 -> 0
A54: Other Rceycling | B54: =B57*B59*B61*B63 -> 0 | C54: =C57*C59*C61*C63 -> 0 | D54: =D57*D59*D61*D63 -> 0 | E54: =SUM(B54:D54) -> 0 | F54: =B57*B59*B61 -> 0 | H54: Garden Waste
A55: ='How much waste'!E47 -> 0
A57: Bin Size | B57: ='How much waste'!H49 -> 0 | C57: ='How much waste'!L49 -> 0 | D57: ='How much waste'!P49 -> 0
A59: How many times per week is it collected | B59: ='How much waste'!H51 -> 0 | C59: ='How much waste'!L51 -> 0 | D59: ='How much waste'!P51 -> 0
A61: How many bins | B61: ='How much waste'!H53 -> 0 | C61: ='How much waste'!L53 -> 0 | D61: ='How much waste'!P53 -> 0
A63: How full are the bins (% estimate) | B63: ='How much waste'!H55 -> 0 | C63: ='How much waste'!L55 -> 0 | D63: ='How much waste'!P55 -> 0
A66: Other Waste Divered or Reused | B66: =B69*B71*B73*B75 -> 0 | C66: =C69*C71*C73*C75 -> 0 | D66: =D69*D71*D73*D75 -> 0 | E66: =SUM(B66:D66) -> 0 | F66: =B69*B71*B73 -> 0
A67: =OtherDivert -> 0
A69: Bin Size | B69: ='How much waste'!H61 -> 0 | C69: ='How much waste'!L61 -> 0 | D69: ='How much waste'!P61 -> 0
A71: How many times per week is it collected | B71: ='How much waste'!H63 -> 0 | C71: ='How much waste'!L63 -> 0 | D71: ='How much waste'!P63 -> 0
A73: How many bins | B73: ='How much waste'!H65 -> 0 | C73: ='How much waste'!L65 -> 0 | D73: ='How much waste'!P65 -> 0
A75: How full are the bins (% estimate) | B75: ='How much waste'!H67 -> 0 | C75: ='How much waste'!L67 -> 0 | D75: ='How much waste'!P67 -> 0
A77: Pg4
A78: Waste Stream | B78: Paper | C78: Cardboard | D78: Containers Bottles and Tubs | E78: Food | F78: Garden waste | G78: Other Waste
A80: General Waste | B80: ='What''s in your waste'!F8 -> 0.42 | C80: ='What''s in your waste'!H8 -> 0.21 | D80: ='What''s in your waste'!N8 -> 0.01 | E80: ='What''s in your waste'!Q8 -> 0.04 | F80: ='What''s in your waste'!S8 -> 0.09 | G80: ='What''s in your waste'!V8 -> 0.19 | I80: ='What''s in your waste'!D18 -> FALSE
A82: Paper Recycling | B82: ='What''s in your waste'!F10 -> 0.65 | C82: ='What''s in your waste'!H10 -> 0.19 | D82: ='What''s in your waste'!N10 -> 0.01 | E82: ='What''s in your waste'!Q10 -> 0 | F82: ='What''s in your waste'!S10 -> 0 | G82: ='What''s in your waste'!V10 -> 0.08 | I82: ='What''s in your waste'!D20 -> FALSE
A84: Cardboard Recycling | B84: ='What''s in your waste'!F12 -> 0.56 | C84: ='What''s in your waste'!H12 -> 0.39 | D84: ='What''s in your waste'!N12 -> 0 | E84: ='What''s in your waste'!Q12 -> 0 | F84: ='What''s in your waste'!S12 -> 0 | G84: ='What''s in your waste'!V12 -> 0.04 | I84: ='What''s in your waste'!D22 -> FALSE
J85: No Waste Audit
A86: Comingled General Recycling | B86: ='What''s in your waste'!#REF! ->  | C86: ='What''s in your waste'!#REF! ->  | D86: ='What''s in your waste'!#REF! ->  | E86: ='What''s in your waste'!#REF! ->  | F86: ='What''s in your waste'!#REF! ->  | G86: ='What''s in your waste'!#REF! ->  | I86: ='What''s in your waste'!D24 -> FALSE | J86: =IF(AND(I80=FALSE,I82=FALSE,I84=FALSE,I86=FALSE),TRUE,FALSE) -> TRUE
A88: Pg5
A89: We recycle printer cartridges. | B89: ='Waste Minimisation'!L7 -> FALSE
A90: We recycled fluorescent tubes. | B90: ='Waste Minimisation'!L8 -> FALSE
A91: We recycle computers | B91: ='Waste Minimisation'!L9 -> FALSE
A92: We recycle mobile phones | B92: ='Waste Minimisation'!L10 -> FALSE
A94: We have litter free lunch days | B94: ='Waste Minimisation'!L12 -> FALSE
A95: We have a school policy to print double sided | B95: ='Waste Minimisation'!L13 -> FALSE
A96: We print in black and white | B96: ='Waste Minimisation'!L14 -> FALSE
A97: We use recycled paper | B97: ='Waste Minimisation'!L15 -> FALSE
A98: Our school is plastic bag free | B98: ='Waste Minimisation'!L16 -> FALSE
A99: Double Sided Printing | B99: ='Waste Minimisation'!L17 -> FALSE
A100: Reuse of single sided paper | B100: ='Waste Minimisation'!L18 -> FALSE
A101: Electronic filing and communication systems | B101: ='Waste Minimisation'!L19 -> FALSE
A102: Electronic publishing | B102: ='Waste Minimisation'!L20 -> FALSE
A103: Policies to minimise offsite introduction of packaging | B103: ='Waste Minimisation'!L21 -> FALSE
A105: Other | B105: ='Waste Minimisation'!L23 -> FALSE
A106: ='Waste Minimisation'!E25 -> 0 | B106: ='Waste Minimisation'!L25 -> FALSE
A107: ='Waste Minimisation'!E27 -> 0 | B107: ='Waste Minimisation'!L26 -> FALSE
A108: ='Waste Minimisation'!E29 -> 0 | B108: ='Waste Minimisation'!L28 -> FALSE
A109: ='Waste Minimisation'!E31 -> 0 | B109: ='Waste Minimisation'!L29 -> FALSE

Sheet Additional Constants (hidden)
A1: State | B1: DR Target | C1: Calculated Diversion Rate
A2: Qld | B2: 0.6 | D2: =IF(SUM(DataStore!E14:E66)<>0,(SUM(DataStore!E24:E66)/SUM(DataStore!E14:E66)),0) -> 0 | P2: 13089600 | Q2: 60605 | R2: =P2/Q2 -> 215.9821797
A3: NSW | B3: 0.63 | P3: 1038969400 | Q3: 4810428 | R3: =P3/Q3 -> 215.9827358
A4: Vic | B4: 0.8
A5: SA | B5: 0.75 | P5: 17452800 | Q5: 317324 | R5: =P5/Q5 -> 54.99993697
A6: WA | B6: 0.45 | P6: 546826000 | Q6: 9942291 | R6: =P6/Q6 -> 54.9999995
A7: TAS | B7: Not Set | P7: 1157371600 | Q7: 21043120 | R7: =P7/Q7 -> 55
A8: ACT | B8: 0.85 | P8: 29306200 | Q8: 532840 | R8: =P8/Q8 -> 55
A9: NT | B9: Not Set
P10: 258878400
A11: Env Benefits of Rceycling | P11: =P10/F49 -> 62176040.36
A12: Material | B12: GHG (Co2/tonne) | C12: GJ/Tonne | D12: KL/tonne | E12: Landfill m3/tonne
A13: Paper/Cardboard | B13: 0.4 | C13: 18 | D13: 23.7 | E13: 3.231437
A14: LPB | B14: -2 | C14: 7.2 | D14: 9.6 | E14: 2.780771
A15: Glass | B15: 0.4 | C15: 3.8 | D15: 2 | E15: 1.797097
A16: Aluminium | B16: 15.2 | C16: 171 | D16: 233.2 | E16: 0.85835
A17: Steel | B17: 0.8 | C17: 32.9 | D17: 1.1 | E17: 2.840359
A18: HDPE | B18: 0.5 | C18: 46.8 | D18: -10.4 | E18: 1.915327
A19: PET | B19: 1.5 | C19: 49.5 | D19: =-12.1 -> -12.1 | E19: 1.915327
A21: Composition of comingled recycling in schools | B21: Volume | C21: Volume to mass conversion | F21: GHG (Co2/tonne) | G21: GJ/Tonne | H21: KL/tonne | I21: Landfill m3/tonne
A22: P& C | B22: =SUM('Waste Composition'!C99:D103) -> 0 | C22: 76 | D22: =C22*B22 -> 0 | F22: =($D22/1000)*B13 -> 0 | G22: =($D22/1000)*C13 -> 0 | H22: =($D22/1000)*D13 -> 0 | I22: 0
A23: LPB | B23: =B39*SUM('Waste Composition'!E$99:E$103) -> 0 | C23: 45 | D23: =C23*B23 -> 0 | F23: =($D23/1000)*B14 -> 0 | G23: 0 | H23: =($D23/1000)*D14 -> 0 | I23: 0
A24: Glass | B24: =B40*SUM('Waste Composition'!E$99:E$103) -> 0 | C24: 150 | D24: 0 | F24: 0 | G24: 0 | H24: 0 | I24: 0
A25: Aluminium | B25: =B41*SUM('Waste Composition'!E$99:E$103) -> 0 | C25: 45 | D25: 0 | F25: 0 | G25: 0 | H25: 0 | I25: 0
A26: Steel | B26: =B42*SUM('Waste Composition'!E$99:E$103) -> 0 | C26: 85 | D26: 0 | F26: 0 | G26: 0 | H26: 0 | I26: 0
A27: HDPE | B27: =B43*SUM('Waste Composition'!E$99:E$103) -> 0 | C27: 45 | D27: 0 | F27: 0 | G27: 0 | H27: 0 | I27: 0
A28: PET | B28: =B44*SUM('Waste Composition'!E$99:E$103) -> 0 | C28: 45 | D28: 0 | F28: 0 | G28: 0 | H28: 0 | I28: 0
B29: Bulimba | C29: Cab SS | D29: Hermit Park
A30: Paper/Cardboard | B30: =1-SUM(B31:B36) -> 0.353 | C30: =1-SUM(C31:C36) -> 0.8893333333 | D30: =1-SUM(D31:D36) -> 0.9936948298 | F30: =(C30*B30)*C$45 -> 0
A31: LPB | B31: 0.177 | C31: 0.022 | D31: 0.002522068096 | F31: =(C31*B31)*C$45 -> 0
A32: Glass | B32: 0.002 | C32: 0.022 | D32: 0 | F32: 0
A33: Aluminium | B33: 0.019 | C33: 0.004444444444 | D33: 0.001261034048 | F33: 0
A34: Steel | B34: 0.016 | C34: 0.02222222222 | D34: 0.001261034048 | F34: 0
A35: HDPE | B35: 0.323 | C35: 0.008888888889 | D35: 0.001261034048 | F35: 0
A36: PET | B36: 0.11 | C36: 0.03111111111 | D36: 0 | F36: 0
F37: 0
B38: =SUM(B31:B36) -> 0.647 | F38: 0
B39: =B31/B$38 -> 0.2735703246 | F39: 0
B40: 0.003091190108 | F40: 0
B41: 0.02936630603 | F41: 0
B42: 0.02472952087 | F42: 0
B43: 0.4992272025 | F43: 0
B44: 0.170015456 | F44: 0
C45: =DataStore!E44 -> 0 | D45: =SUM(D22:D28) -> 0 | F45: =SUM(F22:F28) -> 0 | G45: =SUM(G22:G28) -> 0 | H45: =SUM(H22:H28) -> 0 | I45: =SUM(I22:I28) -> 0
C46: Meters 3 | D46: KG | F46: tCO2 eq | G46: GJ electricity | H46: KL water | I46: m3 of landfill
E47: @ 45 wks/annum | F47: =F45*45 -> 0 | G47: =G45*45 -> 0 | H47: =H45*45 -> 0 | I47: =I45*45 -> 0
F48: Eqv # Cars off Road | G48: Enough Electricity to Power Homes | H48: Enough Water to Fill Back Yard Pools
F49: 4.163636 | G49: =215.982 -> 215.982 | H49: 55
A50: GH/1kg | B50: Reduction due to Recycled content | F50: =F47/F49 -> 0 | G50: =(G47/G49)*10 -> 0 | H50: =H47/H49 -> 0
A51: 0.0006394 | B51: 5.272e-07
A52: recycled content | B52: ='Paper purchased'!D9 -> 0 | D52: P& C | E52: =C22*('Waste Composition'!C98+'Waste Composition'!D98) -> 0 | F52: =($E52/1000)*B13 -> 0 | G52: =($E52/1000)*C13 -> 0 | H52: 0 | I52: 0
A53: GH/KG | B53: =A51-((B52*100)*B51) -> 0.0006394 | D53: LPB | E53: ='Waste Composition'!$E$98*B39*C23 -> 0 | F53: 0 | G53: 0 | H53: 0 | I53: 0
A54: KG | B54: =('Paper purchased'!D6*2.5)*B55 -> 0 | D54: Glass | E54: ='Waste Composition'!$E$98*B40*C24 -> 0 | F54: 0 | G54: 0 | H54: 0 | I54: 0
A55: Period (year) | B55: =IF(C55<>0,(INDEX(A56:B60,MATCH(C55,A56:A60,0),2)),0) -> 0 | C55: ='Paper purchased'!D7 -> 0 | D55: Aluminium | E55: ='Waste Composition'!$E$98*B41*C25 -> 0 | F55: 0 | G55: 0 | H55: 0 | I55: 0
A56: Day | B56: =45*5 -> 225 | D56: Steel | E56: ='Waste Composition'!$E$98*B42*C26 -> 0 | F56: 0 | G56: 0 | H56: 0 | I56: 0
A57: Week | B57: =45 -> 45 | D57: HDPE | E57: ='Waste Composition'!$E$98*B43*C27 -> 0 | F57: 0 | G57: 0 | H57: 0 | I57: 0
A58: Month | B58: 10 | D58: PET | E58: ='Waste Composition'!$E$98*B44*C28 -> 0 | F58: 0 | G58: =($E58/1000)*C19 -> 0 | H58: 0 | I58: 0
A59: Term | B59: 4 | F59: tCO2 eq | G59: GJ electricity | H59: KL water | I59: m3 of landfill
A60: Year | B60: 1 | C60: 0% recyckled content | D60: Saving | F60: =SUM(F52:F58)*45 -> 0 | G60: =SUM(G52:G58)*45 -> 0 | H60: =SUM(H52:H58)*45 -> 0 | I60: =SUM(I52:I58)*45 -> 0
A61: Global hectares/year | B61: =B54*B53 -> 0 | C61: =B54*A51 -> 0 | D61: =C61-B61 -> 0 | F61: Eqv # Cars off Road | G61: Enough Electricity to Power Homes | H61: Enough Water to Fill Back Yard Pools | I61: Enough Landfill Space to fill Backyard Pools
A62: 1.297271724 | B62: =B61*$A62 -> 0 | C62: =C61*$A62 -> 0 | D62: =D61*$A62 -> 0 | F62: 4.163636 | G62: =215.982 -> 215.982 | H62: 55 | I62: 55
A63: soccer pitchs per global hectare | F63: =F60/F62 -> 0 | G63: =(G60/G62)*10 -> 0 | H63: =IF(H60/H62<0,0,H60/H62) -> 0 | I63: =I60/I62 -> 0

Sheet Waste Composition (hidden)
A1: Value | C1: Paper | E1: Cardboard | G1: Containers Bottles and Tubs | J1: Food | L1: Garden waste | O1: Other Waste
A3: 1 | B3: General Waste | C3: 0.1 | E3: 0.9 | G3: 0.11 | L3: 0.89 | O3: 0.99
A4: 1 | B4: General Waste | C4: 0.1 | E4: 0.9 | G4: 0.11 | L4: 0.89 | O4: 0.99
A5: 1 | B5: General Waste | C5: 0.1 | E5: 0.9 | G5: 0.11 | L5: 0.89 | O5: 0.99
B10: Paper Recycling | C10: 1 | G10: 0.11 | J10: 0.79 | O10: 0.99
B12: Cardboard Recycling | E12: 1 | G12: 0.11 | L12: 0.89 | O12: 0.99
B14: Comingled General Recycling | G14: 0.11 | J14: 0.79 | O14: 0.99
B19: Cominations | C19: 1 | D19: 2 | E19: 3 | F19: 4 | G19: 5 | H19: 6 | I19: 7 | J19: 8 | K19: 9 | L19: 10 | M19: 11 | N19: 12 | O19: 13 | P19: 14
A20: 1 | B20: General | C20: 1 | D20: 1 | E20: 1 | F20: 1 | G20: 1 | H20: 1 | I20: 1 | J20: 1 | K20: 1 | L20: 1 | M20: 1 | N20: 1 | O20: 1 | P20: 1 | Q20: 1 | R20: 1 | S20: 1 | T20: 1
A21: 2 | B21: Paper | C21: 1 | D21: 1 | E21: 1 | F21: 1 | G21: 1 | O21: 1 | P21: 1 | Q21: 1 | R21: 1 | S21: 1
A22: 3 | B22: card | D22: 1 | E22: 1 | F22: 1 | G22: 1 | K22: 1 | L22: 1 | M22: 1 | N22: 1
A23: 4 | B23: Comingled | E23: 1 | F23: 1 | G23: 1 | J23: 1 | K23: 1 | M23: 1 | N23: 1 | O23: 1 | P23: 1 | Q23: 1
A24: 5 | B24: Green Waste | F24: 1 | G24: 1 | I24: 1 | J24: 1 | K24: 1 | N24: 1 | P24: 1 | Q24: 1 | S24: 1
A25: 6 | B25: Other organic | G25: 1 | H25: 1 | I25: 1 | J25: 1 | K25: 1 | Q25: 1 | R25: 1 | S25: 1
C30: P | D30: C | E30: Con | F30: Food | G30: Garden | H30: Other
B31: Basic General waste | C31: 0.25 | D31: 0.15 | E31: 0.1 | F31: 0.3 | G31: 0.05 | H31: 0.15 | I31: =SUM(C31:H31) -> 1
A33: =0.25*C31 -> 0.0625 | B33: With paper | C33: =A33/(1-(C31-A33)) -> 0.07692307692 | D33: =D31/(1-($C$31-$A33)) -> 0.1846153846 | E33: =E31/(1-($C$31-$A33)) -> 0.1230769231 | F33: =F31/(1-($C$31-$A33)) -> 0.3692307692 | G33: =G31/(1-($C$31-$A33)) -> 0.06153846154 | H33: =H31/(1-($C$31-$A33)) -> 0.1846153846 | I33: =SUM(C33:H33) -> 1
B34: Paper | C34: 1
D36: =(1-(C31-C33)) -> 0.8269230769
B40: Effects of Rceycling and Diversion Streams
B41: Paper | C41: reduces paper from general waste and comingled
B42: Card | C42: reduces card and paper from general waste and comingled waste streams
B43: paper and Card together | C43: same impact as combined paper and cardboard streams
B44: comingled | C44: reduces containers from general waste stream
C50: Paper | D50: Cardboard | E50: Containers Bottles and Tubs | F50: Food | G50: Garden waste | H50: Other Waste
B51: Total Waste Stream | C51: 39.15 | D51: 13.05 | E51: 18.36 | F51: 25.02 | G51: 2.22 | H51: 2.2 | I51: =SUM(C51:H51) -> 100
A52: Tot Waste Collected | B52: =SUM(DataStore!E14:E77) -> 0 | C52: =C51/100 -> 0.3915 | D52: 0.1305 | E52: 0.1836 | F52: 0.2502 | G52: 0.0222 | H52: 0.022
B53: Available Waste | C53: =C52*$B52 -> 0 | D53: 0 | E53: 0 | F53: 0 | G53: 0 | H53: 0
A54: Paper | B54: =DataStore!E24 -> 0 | C54: =B54*0.975 -> 0 | D54: =B54*0.025 -> 0 | I54: =SUM(C54:H54) -> 0 | J54: =IF(B54<>0,TRUE,FALSE) -> FALSE
A55: card | B55: =DataStore!E34 -> 0 | C55: =0.05*B55 -> 0 | D55: =0.95*B55 -> 0 | I55: =SUM(C55:H55) -> 0 | J55: =IF(B54>0,TRUE,FALSE) -> FALSE
B56: =B55 -> 0 | C56: =0.55*B56 -> 0 | D56: =0.45*B56 -> 0 | I56: 0 | J56: =IF(B54=0,TRUE,FALSE) -> TRUE
A57: comingled | B57: =DataStore!E44 -> 0 | C57: =B57*0.1 -> 0 | D57: =B57*0.05 -> 0 | E57: =B57*0.85 -> 0 | I57: 0 | J57: =IF(AND(B54>0,B55>0),TRUE,FALSE) -> FALSE
B58: =B57 -> 0 | C58: =0.5*B58 -> 0 | D58: =0.15*B58 -> 0 | E58: =0.35*B58 -> 0 | I58: 0 | J58: =IF(AND(B54=0,B55<>0),TRUE,FALSE) -> FALSE
B59: =B57 -> 0 | C59: =0.1*B59 -> 0 | D59: =0.6*B59 -> 0 | E59: =0.3*B59 -> 0 | I59: 0 | J59: =IF(AND(B54<>0,B55=0),TRUE,FALSE) -> FALSE
B60: =B57 -> 0 | C60: =B60*0.65 -> 0 | D60: =B60*0.25 -> 0 | E60: =B60*0.1 -> 0 | I60: 0 | J60: =IF(AND(B54=0,B55=0),TRUE,FALSE) -> TRUE
A61: garden | B61: =IF(DataStore!A55="Garden Waste",DataStore!E54,0) -> 0 | G61: =B61 -> 0 | I61: 0 | J61: =IF(B61>0,TRUE,FALSE) -> FALSE
A62: food | B62: =IF(DataStore!A55="Food",DataStore!E54,0) -> 0 | F62: =B62 -> 0 | J62: =IF(B62>0,TRUE,FALSE) -> FALSE
C63: =SUMIF($J54:$J62,TRUE,C54:C62) -> 0 | D63: 0 | E63: 0 | F63: 0 | G63: 0 | H63: 0
C64: =IF(C53-C63>0,C53-C63,0) -> 0 | D64: 0 | E64: 0 | F64: 0 | G64: 0 | H64: 0 | I64: =SUM(C64:H64) -> 0
B65: Garbage Composition | C65: =IF($I64<>0,C64/$I64,C52) -> 0.3915 | D65: 0.1305 | E65: 0.1836 | F65: 0.2502 | G65: 0.0222 | H65: 0.022
B68: Paper diversion recovers ~45% of all paper
B69: Cardboard estimated to be ~55%
B70: Cominged ~49% of containers
B72: Recovery Rates | C72: 0.45 | D72: 0.55 | E72: 0.49 | F72: 0.2 | G72: 0.5 | H72: 0
B73: one if present | C73: =IF('How much waste'!V18=TRUE,1,0) -> 0 | D73: =IF('How much waste'!V28=TRUE,1,0) -> 0 | E73: =IF('How much waste'!V38=TRUE,1,0) -> 0 | F73: =IF(AND('How much waste'!V49,'How much waste'!E47="Food"),1,IF(AND('How much waste'!V61,OtherDivert="food"),1,0)) -> 0 | G73: =IF(AND('How much waste'!V49,'How much waste'!E47="Garden Waste"),1,IF(AND('How much waste'!V61,OtherDivert="Garden Waste"),1,0)) -> 0
B74: General waste Composition | C74: =IF(C73=1,(C51-(C51*C72)),IF(D73=1,(C51-((C51*C72)/4)),IF(E73=1,(C51-((C51*C72)/6)),C51))) -> 39.15 | D74: =IF(D73=1,(D51-(D51*D72)),IF(E73=1,(D51-(D51*(D72/4))),D51)) -> 13.05 | E74: =IF(E73=1,(E51-(E51*E72)),E51) -> 18.36 | F74: =IF(F73=1,(F51-(F51*F72)),F51) -> 25.02 | G74: =IF(G73=1,(G51-(G51*G72)),G51) -> 2.22 | H74: =IF(H73=1,(H51-(H51*H72)),H51) -> 2.2 | I74: =SUM(C74:H74) -> 100
C75: =C74/$I$74 -> 0.3915 | D75: 0.1305 | E75: 0.1836 | F75: 0.2502 | G75: 0.0222 | H75: 0.022
C77: 13.898
C78: =C51-C74 -> 0 | D78: 0 | E78: 0 | F78: 0 | G78: 0 | H78: 0
B79: Paper Composition | C79: =IF(C73=1,(C72*C51),0)-IF(C73=1,SUM(C80:C81),0) -> 0 | I79: =SUM(C79:H79) -> 0
B80: Cardboard Composition | C80: =IF(D73=1,(((C51*C72)/4)),0)-(IF(AND(D73=1,C73=0,E73=1),C81,0)) -> 0 | D80: =IF(D73=1,(D72*D51),0)-IF(D73=1,D81,0) -> 0 | I80: =SUM(C80:H80) -> 0
B81: Containers | C81: =IF(AND(E73=1),((C51*C72)/6),0) -> 0 | D81: =IF(E73=1,((D51*(D72/4))),0) -> 0 | E81: =IF(E73=1,(E72*E51),0) -> 0 | I81: =SUM(C81:H81) -> 0
B82: Other Diversion | F82: =IF(F73=1,(F72*F51),0) -> 0 | G82: =IF(G73=1,(G72*G51),0) -> 0 | H82: =IF(H73=1,(H72*H51),0) -> 0 | I82: =SUM(C82:H82) -> 0
C83: =SUM(C79:C82) -> 0 | D83: 0 | E83: 0 | F83: 0 | G83: 0 | H83: 0 | I83: =SUM(C83:H83,I74) -> 100
C85: Recyclable Paper | D85: Cardboard | E85: Recyclable Glass | F85: Recyclable Plastic | G85: Recyclable Metal | H85: Food Waste | I85: Garden Waste | J85: General Waste
B86: General Waste | C86: 0.42 | D86: 0.21 | E86: 0 | F86: 0.05 | G86: 0.01 | H86: 0.04 | I86: 0.09 | J86: 0.19
B87: Comingled Recycling | C87: 0.65 | D87: 0.19 | E87: 0 | F87: 0.07 | G87: 0.01 | H87: 0 | I87: 0 | J87: 0.08
B88: Paper/Cardboard | C88: 0.56 | D88: 0.39 | E88: 0 | F88: 0.01 | G88: 0 | H88: 0 | I88: 0 | J88: 0.04
C91: Recyclable Paper | D91: Cardboard | E91: Recyclable Glass | F91: Recyclable Plastic | G91: Recyclable Metal | H91: Food Waste | I91: Garden Waste | J91: General Waste
B92: General Waste | C92: =IF('What''s in your waste'!$D18=TRUE,'What''s in your waste'!F18,'Waste Composition'!C86) -> 0.42 | D92: =IF('What''s in your waste'!$D18=TRUE,'What''s in your waste'!H18,'Waste Composition'!D86) -> 0.21 | E92: =IF('What''s in your waste'!$D18=TRUE,'What''s in your waste'!N18,'Waste Composition'!E86) -> 0 | F92: =IF('What''s in your waste'!$D18=TRUE,'What''s in your waste'!Q18,'Waste Composition'!F86) -> 0.05 | G92: =IF('What''s in your waste'!$D18=TRUE,'What''s in your waste'!S18,'Waste Composition'!G86) -> 0.01 | H92: =IF('What''s in your waste'!$D18=TRUE,'What''s in your waste'!V18,'Waste Composition'!H86) -> 0.04 | I92: =IF('What''s in your waste'!$D18=TRUE,'What''s in your waste'!W18,'Waste Composition'!I86) -> 0.09 | J92: =IF('What''s in your waste'!$D18=TRUE,'What''s in your waste'!X18,'Waste Composition'!J86) -> 0.19
B93: Comingled Recycling | C93: =IF('What''s in your waste'!$D20=TRUE,'What''s in your waste'!F20,'Waste Composition'!C87) -> 0.65 | D93: =IF('What''s in your waste'!$D20=TRUE,'What''s in your waste'!H20,'Waste Composition'!D87) -> 0.19 | E93: =IF('What''s in your waste'!$D20=TRUE,'What''s in your waste'!N20,'Waste Composition'!E87) -> 0 | F93: =IF('What''s in your waste'!$D20=TRUE,'What''s in your waste'!Q20,'Waste Composition'!F87) -> 0.07 | G93: =IF('What''s in your waste'!$D20=TRUE,'What''s in your waste'!S20,'Waste Composition'!G87) -> 0.01 | H93: =IF('What''s in your waste'!$D20=TRUE,'What''s in your waste'!V20,'Waste Composition'!H87) -> 0 | I93: =IF('What''s in your waste'!$D20=TRUE,'What''s in your waste'!W20,'Waste Composition'!I87) -> 0 | J93: =IF('What''s in your waste'!$D20=TRUE,'What''s in your waste'!X20,'Waste Composition'!J87) -> 0.08
B94: Paper/Cardboard | C94: =IF('What''s in your waste'!$D22=TRUE,'What''s in your waste'!F22,'Waste Composition'!C88) -> 0.56 | D94: =IF('What''s in your waste'!$D22=TRUE,'What''s in your waste'!H22,'Waste Composition'!D88) -> 0.39 | E94: =IF('What''s in your waste'!$D22=TRUE,'What''s in your waste'!N22,'Waste Composition'!E88) -> 0 | F94: =IF('What''s in your waste'!$D22=TRUE,'What''s in your waste'!Q22,'Waste Composition'!F88) -> 0.01 | G94: =IF('What''s in your waste'!$D22=TRUE,'What''s in your waste'!S22,'Waste Composition'!G88) -> 0 | H94: =IF('What''s in your waste'!$D22=TRUE,'What''s in your waste'!V22,'Waste Composition'!H88) -> 0 | I94: =IF('What''s in your waste'!$D22=TRUE,'What''s in your waste'!W22,'Waste Composition'!I88) -> 0 | J94: =IF('What''s in your waste'!$D22=TRUE,'What''s in your waste'!X22,'Waste Composition'!J88) -> 0.04
B97: Volume per stream
A98: General | B98: =DataStore!E14 -> 0 | C98: =$B98*C92 -> 0 | D98: 0 | E98: 0 | F98: 0 | G98: 0 | H98: 0
A99: Paper Composition | B99: =DataStore!E24 -> 0 | C99: =$B99*C93 -> 0 | D99: 0 | E99: 0 | F99: 0 | G99: 0 | H99: 0
A100: Cardboard Composition | B100: =DataStore!E34 -> 0 | C100: =$B100*C94 -> 0 | D100: 0 | E100: 0 | F100: 0 | G100: 0 | H100: 0
A101: Containers | B101: =DataStore!E44 -> 0 | C101: =$B101*C95 -> 0 | D101: 0 | E101: 0 | F101: 0 | G101: 0 | H101: 0
A102: Garden | B102: =IF(DataStore!A55="Garden Waste",DataStore!E54,0) -> 0 | C102: =$B102*C96 -> 0 | D102: 0 | E102: 0 | F102: 0 | G102: 0 | H102: 0
A103: Food | B103: =IF(DataStore!A55="Food",DataStore!E54,0) -> 0 | C103: =$B103*C97 -> 0 | D103: 0 | E103: 0 | F103: 0 | G103: 0 | H103: 0

Sheet Recommendation List (hidden)
A1: Rec Cat | B1: Trigger Description | C1: Trigger formulae | D1: Description | E1: 1 | F1: Txt
A2: Waste Generation and Diversion Recommendations | B2: True false based on meters of service identified | C2: =IF(DataStore!E44=0,TRUE,FALSE) -> TRUE | D2: New services - Commingled Recycling | E2: 2 | F2: ="As available in "&H2&" consider implementing a comingled recycling service. Comingled recyclables commonly account for 10-20% of a schools normal waste stream and may be recoverable in your area." -> As available in your local area consider implementing a comingled recycling service. Comingled recyclables commonly account for 10-20% of a schools normal waste stream and may be recoverable in your area. | H2: =IF(I2<>0,I2,"your local area") -> your local area | I2: ='School Information'!D10 -> 0
B3: True false based on meters of services (AND) identified | C3: =IF(AND(DataStore!E24=0,DataStore!E34=0),TRUE,FALSE) -> TRUE | D3: New services - Paper/Cardboard Recycling | E3: 3 | F3: ="As available in "&H2&" consider implementing a paper and cardboard recycling service. Paper and cardboard recyclables commonly account for approximately 50% of a schools normal waste stream and may be recoverable in your area." -> As available in your local area consider implementing a paper and cardboard recycling service. Paper and cardboard recyclables commonly account for approximately 50% of a schools normal waste stream and may be recoverable in your area.
B4: True false based on meters of services (AND) diversion rate | C4: =IF(AND(DataStore!E44<>0,'Additional Constants'!D2<0.5),TRUE,FALSE) -> FALSE | D4: Additional Service Capacity - Comingled Recycling | E4: 4 | F4: Consider increasing you comingled recycling service to improve the diversion of materials from your school. Diversion rates of >60% should be possible in most schools that have not undertaken programs to eliminate materials that are recyclable through this system.
B5: True false based on meters of services (AND) diversion rate | C5: =IF(AND(SUM(DataStore!E24,DataStore!E34)<>0,'Additional Constants'!D2<0.5),TRUE,FALSE) -> FALSE | D5: Additional Service Capacity - Paper and Cardboard | E5: 5 | F5: Consider increasing you paper and/or cardboard services to improve the diversion of materials from your school. Diversion rates of >60% should be possible in most schools that have not undertaken programs to eliminate materials that are recyclable through this system.
B6: True false based service present, less than 50% full and low DR | C6: =IF(DataStore!E24<>0,IF(AND(((DataStore!E24/DataStore!F24)<0.51),('Additional Constants'!D2<0.5)),TRUE, FALSE),FALSE) -> FALSE | D6: Improved Diversion Paper | E6: 6 | F6: Half or less of the capacity of the paper recycling is being used, while the diversion rate of materials away from recycling is low. Look for ways to improve diversion in this service to maximise your value for money and environmental outcomes.
B7: True false based service present, less than 50% full and low DR | C7: =IF(DataStore!E34<>0,IF(AND(((DataStore!E34/DataStore!F34)<0.51),('Additional Constants'!D2<0.5)),TRUE, FALSE),FALSE) -> FALSE | D7: Improved Diversion Cardboard | E7: 7 | F7: Half or less of the capacity of the cardboard recycling is being used, while the diversion rate of materials away from recycling is low. Look for ways to improve diversion in this service to maximise your value for money and environmental outcomes.
B8: True false based service present, less than 50% full and low DR | C8: =IF(DataStore!E44<>0,IF(AND(((DataStore!E44/DataStore!F44)<0.51),('Additional Constants'!D2<0.5)),TRUE, FALSE),FALSE) -> FALSE | D8: Improved Diversion Comingled | E8: 8 | F8: Half or less of the capacity of the comingled recycling is being used, while the diversion rate of materials away from recycling is low. Look for ways to improve diversion in this service to maximise your value for money and environmental outcomes.
B9: False True based on presence of organic diversion services | C9: =IF(OR(DataStore!A55="Food",DataStore!A55="Garden Waste",DataStore!A67="Food",DataStore!A67="Garden Waste"),FALSE,TRUE) -> TRUE | D9: Introduction of Organic Services | E9: 9 | F9: No formal organic diversion services were identified in your responses. Consider diverting offsite or reusing onsite organic materials such as garden waste or food scraps to reduce the amount of waste generated for disposal from your site.
B10: FALSE TRUE based on diversion service considerations | C10: =IF(OR(C2,C3,C4,C5,C6,C7,C8,C9=TRUE),FALSE,TRUE) -> FALSE | D10: Satisfactory Diversion Services | E10: 10 | F10: An examination of the sites diversion services indicates that they are likely to be satisfactory for your sites needs.
B11: TRUE FALSE based on diversion service considerations | C11: =IF(OR(C2,C3,C4,C5,C6,C7,C8,C9=TRUE),TRUE, FALSE) -> TRUE | D11: Recommended changes may prompt consideration of total waste to landfill volumes | E11: 11 | F11: It is noted that some service or usage changes were recommended for your diversion services. When implementing these changes, it is recommended that consideration be given to monitoring the affect of the changes and reducing the general waste service if appropriate.
B12: True false based on used waste capacity | C12: =IF(DataStore!E14=0,"NoService",IF(DataStore!E14/DataStore!F14<0.6,TRUE,FALSE)) -> NoService | D12: Over serviced Waste Stream | E12: 12 | F12: The total capacity of your waste service as described appears to be larger than you require. Consider reducing the size or service frequency of this container in consultation with your waste service provider.
B13: True False Based on waste stream composition | C13: =IF(DataStore!I80=FALSE,TRUE,FALSE) -> TRUE | D13: if expected and presented compositions match, recommend compositional assessment of waste streams | E13: 13 | F13: It is noted that compositions used in this report for the general waste composition are the default waste stream compositions. These figures are averages based on examination of number of school waste streams, however, it is recommended that a visual assessment of the composition of the materials presented for collection be undertaken. In particular, look for recycling potential in the garbage stream and contamination in the recycling streams and if identified develop a remediation plan to address these issues at your school.
D14: Diversion service count and list, drawn from below | E14: 14 | F14: =IF(OR(C15,C16,C17,C18,C19,C20=TRUE),F20,"No Regular Diversion Services Identified") -> No Regular Diversion Services Identified
C15: =IF(DataStore!E44>0,TRUE,FALSE) -> FALSE | D15: Comingled Recycling | E15: 15 | F15: =IF(C15=TRUE,D15&", ","") -> 
C16: =IF(DataStore!E24>0,TRUE,FALSE) -> FALSE | D16: Paper Recycling | E16: 16 | F16: =IF(C16=TRUE,D16&", ","") -> 
C17: =IF(DataStore!E34>0,TRUE,FALSE) -> FALSE | D17: Cardboard Recycling | E17: 17 | F17: =IF(C17=TRUE,D17&", ","") -> 
C18: =IF(OR(DataStore!A55="Food",DataStore!A67="Food"),TRUE,FALSE) -> FALSE | D18: Food Diversion/Reuse/Recycling | E18: 18 | F18: =IF(C18=TRUE,D18&", ","") -> 
C19: =IF(OR(DataStore!A55="Garden Waste",DataStore!A67="Garden Waste"),TRUE,FALSE) -> FALSE | D19: Garden Organics Diversion/Reuse/Recycling | E19: 19 | F19: =IF(C19=TRUE,D19&", ","") -> 
C20: =IF(OR(DataStore!A55="Other",DataStore!A67="Other"),TRUE,FALSE) -> FALSE | D20: Other Diversion/Reuse/Recycling | E20: 20 | F20: ="The following recycling streams are observed at the site; "&F15&F16&F17&F18&F19 -> The following recycling streams are observed at the site;
E21: 21
E22: 22 | F22: =IF(DataStore!B7<>0,DataStore!B7,"Local Council") -> Local Council
E23: 23
D24: alternate text Row 12 | E24: 24 | F24: It is observed that more than 60% of the capacity of the general waste stream is currently being used. If this usage rate drops below this, it is recommended that consideration be given to reducing the service capacity by reducing bin size, collection frequency or bin numbers. Contact your waste service provider for assistance.
D25: Alternate text Row 13 | E25: 25 | F25: It appears you have undertaken a waste audit or provided an estimation of the composition of your general waste stream(s). Regular reviews of the waste composition can identify opportunities as they arise. It is recommended that you continue to undertake regular visual composition assessments.
D26: Alternate row 3 / 5 | E26: 26 | F26: Capacity of Paper/Cardboard Recycling appears appropriate
D27: Alternate row 2 / 4 | E27: 27 | F27: Capacity of Comingled Recycling appears appropriate
D28: Alt row 6 (A) | E28: 28 | F28: No paper recycling observed
D29: Alt row 6 (B) | E29: 29 | F29: The current paper recycling stream is being used within expected capacity levels
D30: Alt rwo7 (A) | E30: 30 | F30: No cardboard recycling observed
D31: Alt row 7 (B) | E31: 31 | F31: The current cardboard recycling stream is being used within expected capacity levels
D32: Alt rwo8 (A) | E32: 32 | F32: No comingled recycling observed
D33: Alt row 8 (B) | E33: 33 | F33: The current comingled recycling stream is being used within expected capacity levels
D34: alt Row 9 | E34: 34 | F34: Current diversion services for organic food and/or garden waste are identified for this site
D35: alt Row 11 | E35: 35 | F35: As waste minimisation behaviours and actions are introduced it is important to monitor the capacity of the general waste stream, and reduce the bin size, numbers or collection frequency as required to get the best benefit from your waste reduction actions

Sheet Report One
D4: Summary of Waste Generation
D6: School Name | G6: =DataStore!B1 -> 0 | Q6: NEXT
D7: Local Government Area | G7: =IF(DataStore!B7=0,"Not Provided", DataStore!B7) -> Not Provided
D8: State | G8: =DataStore!B6 -> NSW
D10: Number of Students | G10: =DataStore!B3 -> 0
D11: Number of Staff | G11: =DataStore!B4 -> 0
D12: Total Number of Persons | G12: =SUM(G10:G11) -> 0
D14: Waste Generation Estimation
E16: General Wasye | F16: =DataStore!E14 -> 0
E17: Paper and Cardboard Recycling | F17: =SUM(DataStore!E24,DataStore!E34) -> 0
E18: Comingled Recycling | F18: =DataStore!E44 -> 0
E19: Other Diversion | F19: =SUM(DataStore!E54,DataStore!E66) -> 0
R26: =TEXT("",) -> 
G34: Observed | I34: Compared to State Target | L34: =INDEX('Additional Constants'!A2:B9,MATCH('Report One'!G8,'Additional Constants'!A2:A9,0),2) -> 0.63
D35: Diversion Rate | G35: ='Additional Constants'!D2 -> 0 | I35: =IF(L34<>"Not Set",G35-L34,IF(G35>0.6,"Acceptable in many states","Considered for Improvement" )) -> -0.63
D37: Waste and Recycling Generation Rates
H39: Per Student | J39: Per Person
D40: General Waste | H40: =(DataStore!$E14/DataStore!B3)*1000 ->  | J40: =(DataStore!$E14/G12)*1000 -> 
D41: Paper and Cardboard Recycling | H41: =(SUM(DataStore!$E24,DataStore!E34)/DataStore!B3)*1000 ->  | J41: =(SUM(DataStore!$E24,DataStore!E34)/G12)*1000 -> 
D42: Comingled Recycling | H42: =(DataStore!$E44/DataStore!B3)*1000 ->  | J42: =(DataStore!$E44/G12)*1000 -> 
D43: Other Diversion | H43: =(SUM(DataStore!$E54,DataStore!E66)/DataStore!B3)*1000 ->  | J43: =(SUM(DataStore!$E54,DataStore!E66)/G12)*1000 -> 

Sheet Report Two
D4: Impacts of Waste Generation
P5: NEXT
D7: How much waste does your school send to landfill?
D8: =((D12/45)*240)/('School Information'!D6:N6+'School Information'!D7:N7) ->  | E8: per person per week (L)
D9: =DataStore!E14 -> 0 | E9: m3 per week
D10: =D12/45 -> 0 | E10: wheelie bins per week
D11: =D9*45 -> 0 | E11: m3 per year @45
D12: =D11/0.24 -> 0 | E12: 240lt wheelie bins
D13: 1 | E13: =(IF(((D12/10)/5)-ROUND((D12/10)/5,0)<0.25,(ROUND(((D12/10)/5),0)),(ROUND(((D12/10)/5),0)+1)))*5 -> 0 | F13: =D12 -> 0
D14: 2 | E14: =IF(E13<F14,E13,F14) -> 0 | F14: =F13-E$13 -> 0
D15: 3 | E15: =IF(E14<F15,E14,F15) -> 0 | F15: 0
D16: 4 | E16: 0 | F16: 0
D17: 5 | E17: 0 | F17: 0
D18: 6 | E18: 0 | F18: 0
D19: 7 | E19: 0 | F19: 0
D20: 8 | E20: 0 | F20: 0
D21: 9 | E21: 0 | F21: 0
D22: 10 | E22: =IF((E13*10)=D12,E21,IF((E13*10)>D12,IF(F22<0,0,F22),IF((E13*10)<D12,F22))) -> 0 | F22: 0
E23: =SUM(E13:E22) -> 0
E24: =E23-D12 -> 0
D35: Environmental savings from your school's paper, cardboard and comingled recycling (per annum)

Sheet Report Three
E4: Waste Stream Compositions
D6: General Waste | I6: Comingled Recycling | O6: Paper/Cardboard Recycling | U6: NEXT
D7: =IF('What''s in your waste'!D18=TRUE, "The general waste stream composition chart represents the composition of your school's waste stream based on the audit data that you have provided.", "The general waste stream composition chart represents the composition of your school's waste stream based on average waste stream data for schools.") -> The general waste stream composition chart represents the composition of your school's waste stream based on average waste stream data for schools. | I7: =IF('What''s in your waste'!D20=TRUE, "The comingled recycling stream composition chart represents the composition of your school's recycling stream based on the audit data that you have provided.", "The comingled recycling stream composition chart represents the composition of your school's recycling stream based on average waste stream data for schools.") -> The comingled recycling stream composition chart represents the composition of your school's recycling stream based on average waste stream data for schools. | O7: =IF('What''s in your waste'!D22=TRUE, "The paper/cardboard stream composition chart represents the composition of your school's paper/cardboard stream based on the audit data that you have provided.", "The paper/cardboard stream composition chart represents the composition of your school's paper/cardboard stream based on average waste stream data for schools.") -> The paper/cardboard stream composition chart represents the composition of your school's paper/cardboard stream based on average waste stream data for schools.
D13: ="Your general waste stream has a resource loss of " & SUM(H21:L21)*100 & "%." & "This means that " & SUM(H21:L21)*100 & "% " & "of your general waste could be diverted from landfill through the comingled recycling collection service." -> Your general waste stream has a resource loss of 69%.This means that 69% of your general waste could be diverted from landfill through the comingled recycling collection service. | I13: ="Your comingled recycling stream has a contamination rate of " & SUM(M22:O22)*100 & "%." & "This means that " & SUM(M22:O22)*100 & "% " & "of your comingled recycling stream is actually general waste materials and is contaminating your recycling." -> Your comingled recycling stream has a contamination rate of 8%.This means that 8% of your comingled recycling stream is actually general waste materials and is contaminating your recycling. | O13: ="Your paper/cardboard recycling stream has a contamination rate of " & SUM(J23:O23)*100 & "%." & "This means that " & SUM(J23:O23)*100 & "% " & "of your paper/cardboard stream is actually general waste and other recyclable materials accepted in the comingled recycling bin and is contaminating your paper/cardboard stream." -> Your paper/cardboard recycling stream has a contamination rate of 5%.This means that 5% of your paper/cardboard stream is actually general waste and other recyclable materials accepted in the comingled recycling bin and is contaminating your paper/cardboard stream.
H20: Recyclable Paper | I20: Cardboard | J20: Recyclable Glass | K20: Recyclable Plastic | L20: Recyclable Metal | M20: Food Waste | N20: Garden Waste | O20: General Waste
G21: General Waste | H21: ='Waste Composition'!C92 -> 0.42 | I21: ='Waste Composition'!D92 -> 0.21 | J21: ='Waste Composition'!E92 -> 0 | K21: ='Waste Composition'!F92 -> 0.05 | L21: ='Waste Composition'!G92 -> 0.01 | M21: ='Waste Composition'!H92 -> 0.04 | N21: ='Waste Composition'!I92 -> 0.09 | O21: ='Waste Composition'!J92 -> 0.19
G22: Comingled Recycling | H22: ='Waste Composition'!C93 -> 0.65 | I22: ='Waste Composition'!D93 -> 0.19 | J22: ='Waste Composition'!E93 -> 0 | K22: ='Waste Composition'!F93 -> 0.07 | L22: ='Waste Composition'!G93 -> 0.01 | M22: ='Waste Composition'!H93 -> 0 | N22: ='Waste Composition'!I93 -> 0 | O22: ='Waste Composition'!J93 -> 0.08
G23: Paper/Cardboard | H23: ='Waste Composition'!C94 -> 0.56 | I23: ='Waste Composition'!D94 -> 0.39 | J23: ='Waste Composition'!E94 -> 0 | K23: ='Waste Composition'!F94 -> 0.01 | L23: ='Waste Composition'!G94 -> 0 | M23: ='Waste Composition'!H94 -> 0 | N23: ='Waste Composition'!I94 -> 0 | O23: ='Waste Composition'!J94 -> 0.04

Sheet Report Four
D4: Waste Minimisation and Avoidance | R4: ü
R5: NEXT
D6: Additional Diversion actions
F7: =IF(DataStore!B89=TRUE,"ü","û") -> û | G7: =S7&"recycle printer cartridges" -> No we don't recycle printer cartridges | S7: =IF(DataStore!B89=TRUE,"Yes, we ","No we don't ") -> No we don't
F8: =IF(DataStore!B90=TRUE,"ü","û") -> û | G8: =S8&"recycled fluorescent tubes" -> No we don't recycled fluorescent tubes | S8: =IF(DataStore!B90=TRUE,"Yes, we ","No we don't ") -> No we don't
F9: =IF(DataStore!B91=TRUE,"ü","û") -> û | G9: =S9&"recycle computers" -> No we don't recycle computers | S9: =IF(DataStore!B91=TRUE,"Yes, we ","No we don't ") -> No we don't
F10: =IF(DataStore!B92=TRUE,"ü","û") -> û | G10: =S10&"recycle mobile phones" -> No we don't recycle mobile phones | S10: =IF(DataStore!B92=TRUE,"Yes, we ","No we don't ") -> No we don't
D12: Waste Minimisation actions
F13: =IF(DataStore!B94=TRUE,"ü","û") -> û | G13: =S13&"have litter free lunch days" -> No we don't have litter free lunch days | S13: =IF(DataStore!B94=TRUE,"Yes, we ","No we don't ") -> No we don't
F14: =IF(DataStore!B95=TRUE,"ü","û") -> û | G14: =S14&"have a school policy to print double sided" -> No we don't have a school policy to print double sided | S14: =IF(DataStore!B95=TRUE,"Yes, we ","No we don't ") -> No we don't
F15: =IF(DataStore!B96=TRUE,"ü","û") -> û | G15: =S15&"print in black and white" -> No we don't consistently print in black and white | S15: =IF(DataStore!B96=TRUE,"Yes, we consistently ","No we don't consistently ") -> No we don't consistently
F16: =IF(DataStore!B97=TRUE,"ü","û") -> û | G16: =S16&"use recycled paper" -> No we don't consistently use recycled paper | S16: =IF(DataStore!B97=TRUE,"Yes, we consistently ","No we don't consistently ") -> No we don't consistently
F17: =IF(DataStore!B98=TRUE,"ü","û") -> û | G17: =S17&"plastic bag free" -> No we aren't plastic bag free | S17: =IF(DataStore!B98=TRUE,"Yes, we are ","No we aren't ") -> No we aren't
F18: =IF(DataStore!B99=TRUE,"ü","û") -> û | G18: =S18&"consistently use double sided printing" -> No we don't consistently use double sided printing | S18: =IF(DataStore!B99=TRUE,"Yes, we ","No we don't ") -> No we don't
F19: =IF(DataStore!B100=TRUE,"ü","û") -> û | G19: =S19&"use of single sided paper" -> No we don't consistently use of single sided paper | S19: =IF(DataStore!B100=TRUE,"Yes, we consistently ","No we don't consistently ") -> No we don't consistently
F20: =IF(DataStore!B101=TRUE,"ü","û") -> û | G20: =S20&"use electronic filing and communication systems" -> No we don't consistently use electronic filing and communication systems | S20: =IF(DataStore!B101=TRUE,"Yes, we consistently ","No we don't consistently ") -> No we don't consistently
F21: =IF(DataStore!B102=TRUE,"ü","û") -> û | G21: =S21&"use electronic publishing" -> No we don't consistently use electronic publishing | S21: =IF(DataStore!B102=TRUE,"Yes, we consistently ","No we don't consistently ") -> No we don't consistently
F22: =IF(DataStore!B103=TRUE,"ü","û") -> û | G22: =S22&"have policies to minimise offsite introduction of packaging" -> No we don't have policies to minimise offsite introduction of packaging | S22: =IF(DataStore!B103=TRUE,"Yes, we ","No we don't ") -> No we don't
D24: Other Actions to Reduce Waste at Our School
F26: =IF(AND(S26=0,S27=0,S28=0,S29=0),"No other waste minimisation actions reported",S26) -> No other waste minimisation actions reported | S26: =DataStore!A106 -> 0
F27: =IF(S27<>0,S27,"") ->  | S27: =DataStore!A107 -> 0
F28: =IF(S28<>0,S28,"") ->  | S28: =DataStore!A108 -> 0
F29: =IF(S29<>0,S29,"") ->  | S29: =DataStore!A109 -> 0

Sheet Report Five
D4: Recommendations from Data Provided
D6: Additional Diversion Services
F7: =IF('Recommendation List'!C10=TRUE,'Recommendation List'!F10,'Recommendation List'!F14) -> No Regular Diversion Services Identified
F9: =IF('Recommendation List'!C3=TRUE,'Recommendation List'!F3,IF('Recommendation List'!C5=TRUE,'Recommendation List'!F5,'Recommendation List'!F26)) -> As available in your local area consider implementing a paper and cardboard recycling service. Paper and cardboard recyclables commonly account for approximately 50% of a schools normal waste stream and may be recoverable in your area.
F11: =IF('Recommendation List'!C2=TRUE,'Recommendation List'!F2,IF('Recommendation List'!C4=TRUE,'Recommendation List'!F4,'Recommendation List'!F27)) -> As available in your local area consider implementing a comingled recycling service. Comingled recyclables commonly account for 10-20% of a schools normal waste stream and may be recoverable in your area.
F13: =IF('Recommendation List'!C6=TRUE,'Recommendation List'!F6,IF(DataStore!E24=0,'Recommendation List'!F28,'Recommendation List'!F29)) -> No paper recycling observed
F15: =IF('Recommendation List'!C7=TRUE,'Recommendation List'!F7,IF(DataStore!E34=0,'Recommendation List'!F30,'Recommendation List'!F31)) -> No cardboard recycling observed
F17: =IF('Recommendation List'!C8=TRUE,'Recommendation List'!F8,IF(DataStore!E44=0,'Recommendation List'!F32,'Recommendation List'!F33)) -> No comingled recycling observed
F19: =IF('Recommendation List'!C9=TRUE,'Recommendation List'!F9,'Recommendation List'!F34) -> No formal organic diversion services were identified in your responses. Consider diverting offsite or reusing onsite organic materials such as garden waste or food scraps to reduce the amount of waste generated for disposal from your site.
D22: Consideration of General Waste Services
F23: =IF('Recommendation List'!C11=TRUE,'Recommendation List'!F11,'Recommendation List'!F35) -> It is noted that some service or usage changes were recommended for your diversion services. When implementing these changes, it is recommended that consideration be given to monitoring the affect of the changes and reducing the general waste service if appropriate.
F25: =IF('Recommendation List'!C12=TRUE,'Recommendation List'!F12,IF('Recommendation List'!C12=FALSE,'Recommendation List'!F24,"No Garbage Service Entered")) -> No Garbage Service Entered
F27: =IF('Recommendation List'!C13=TRUE,'Recommendation List'!F13,'Recommendation List'!F25) -> It is noted that compositions used in this report for the general waste composition are the default waste stream compositions. These figures are averages based on examination of number of school waste streams, however, it is recommended that a visual assessment of the composition of the materials presented for collection be undertaken. In particular, look for recycling potential in the garbage stream and contamination in the recycling streams and if identified develop a remediation plan to address these issues at your school.
F29: =IF(S29<>0,S29,"") -> 
D30: For further assistance
F31: ="For further assistance in implemented the recommendations provided, it is recommended that you contact your waste contractor and/or "&'Recommendation List'!F22&"." -> For further assistance in implemented the recommendations provided, it is recommended that you contact your waste contractor and/or Local Council.
